[Event "1st Bella Italia International 2022"]
[Site "Lignano"]
[Date "2022.08.18"]
[Round "2.1"]
[White "Bettalli, Francesco"]
[Black "Sonis, Francesco"]
[Result "0-1"]
[ECO "B23"]
[WhiteElo "2237"]
[BlackElo "2543"]
[Annotator "TA"]
[PlyCount "112"]
[EventDate "2022.08.18"]
[EventCountry "ITA"]
[SourceTitle "playchess.com"]
[Source "ChessBase"]
[SourceQuality "1"]
[TimeControl "5400+30"]

{[%evp 9,112,4,10,10,5,7,16,4,8,10,10,0,0,8,3,20,7,8,12,-12,-12,-10,-8,-17,-13,-33,-18,-42,-44,-39,-42,-36,-20,-8,-27,-30,0,0,0,0,13,0,0,0,0,0,0,0,0,0,0,-4,0,-121,-118,-143,-143,-144,-144,-144,-151,-232,-103,-131,-104,-168,-153,-418,-277,-410,-408,-383,-303,-322,-322,-352,-352,-1368,-1523,-1622,-1564,-1358,-931,-1304,-1370,-1352,-1017,-1600,-1502,-1518,-1149,-10069,-6629,-9292,-5056,-6597,-5301,-4602,-4634,-29978,-29979,-29979,-29979,-29979,-29977]} 1. e4 {[%emt 0:07:38]} c5 {[%emt 0:00:08]} 2. Nc3 {[%emt 0:00:04]} Nc6 {[%emt 0:00:04]} 3. Bb5 {[%emt 0:00:07]} Nd4 {[%emt 0:00:04]} 4. Nf3 {[%emt 0:00:04]} a6 {[%emt 0:00:03]} 5. Bd3 {[%emt 0:00:03]} g6 {[%emt 0:00:04]} 6. Rb1 {[%emt 0:00:03] B23: Closed Sicilian: Lines without g3.} Bg7 {[%emt 0:00:07]} 7. b4 {[%emt 0:00:05]} cxb4 {[%emt 0:00:04]} 8. Rxb4 {[%emt 0:00:03] The position is equal.} Nc6 {[%emt 0:00:04]} 9. Rb1 {[%emt 0:01:06]} Nf6 {[%emt 0:00:07]} 10. O-O {[%emt 0:03:51]} d5 {[%emt 0:03:37] [#]} 11. exd5 $146 {[%emt 0:02:56]} ({Predecessor:} 11. Bb2 d4 12. Ne2 e5 13. Ba3 Bf8 14. Bxf8 Kxf8 15. Ng3 Kg7 16. Bc4 b5 17. Bb3 {0-1 (84) Mou,I (2042)-Adury,A (2079) Philadelphia 2022}) 11... Nxd5 {[%emt 0:00:54]} 12. Nxd5 {[%emt 0:00:33]} Qxd5 {[%emt 0:00:14]} 13. Bb2 {[%emt 0:00:56]} O-O {[%emt 0:04:28]} 14. a4 {[%emt 0:04:29]} Bg4 {[%emt 0:07:14]} 15. Bxg7 {[%emt 0:00:18]} Kxg7 {[%emt 0:00:05]} 16. Be2 {[%emt 0:01:58]} ({Don't play} 16. Rxb7 Nd4 17. Qa1 (17. Rxe7 $2 Bxf3 18. Qa1 Qg5 $19) 17... Bxf3 18. gxf3 Qxb7 $17) 16... e5 {[%emt 1:21:13]} 17. c4 {[%emt 0:04:26]} Qd7 {[%emt 0:00:00]} 18. d4 {[%emt 0:03:12]} Bxf3 {[%emt 0:00:00]} 19. Bxf3 {[%emt 0:00:14]} exd4 {[%emt 0:00:00]} 20. Bd5 {[%emt 1:08:24]} Rae8 {[%emt 0:00:00]} 21. Rb6 {[%emt 0:00:00]} Re7 {[%emt 0:00:00]} 22. g3 {[%emt 0:00:00]} Qd6 {[%emt 0:00:00]} 23. Qxd4+ {[%emt 0:00:00]} Nxd4 {[%emt 0:00:00]} 24. Rxd6 {[%emt 0:00:00]} Nb3 {[%emt 0:00:00]} 25. Rb6 {[%emt 0:00:00]} Na5 {[%emt 0:00:00]} 26. Rfb1 {[%emt 0:00:00][%cal Rd5b7]} Rc8 {[%emt 0:00:00]} 27. R1b4 {[%emt 0:00:00]} Rc5 {[%emt 0:00:00]} 28. Kg2 {[%emt 0:00:00]} Rec7 {[%emt 0:00:00]} 29. h3 {[%emt 0:00:00]} h6 {[%emt 0:00:00]} 30. Kh2 {[%emt 0:00:00]} Nxc4 {[%emt 0:00:00]} 31. Bxc4 {[%emt 0:00:00]} (31. Rxb7 $11 Rxb7 32. Bxb7) 31... Rxc4 $17 {[%emt 0:00:00]} 32. Rxb7 {[%emt 0:00:00] [#]} a5 $1 {[%emt 0:00:00]} 33. Rxc7 {[%emt 0:00:00]} Rxb4 {[%emt 0:00:00][%mdl 4096] Endgame KR-KR} 34. Ra7 {[%emt 0:00:00]} Rxa4 {[%emt 0:00:00]} 35. Ra6 {[%emt 0:00:00]} (35. Kg2 $17) 35... g5 {[%emt 0:00:00]} (35... Ra1 $19 {has better winning chances.} 36. Kg2 a4) 36. Kg2 {[%emt 0:00:00]} h5 {[%emt 0:00:00][%cal Bh6h5,Bh5g4][%mdl 32]} 37. Ra7 {[%emt 0:00:00]} (37. Kf3 $17 {might work better.}) 37... g4 $19 {[%emt 0:00:00]} 38. hxg4 $2 {[%emt 0:00:00] Loses the game.} (38. Rd7 $17) 38... hxg4 {[%emt 0:00:00]} 39. Ra6 {[%emt 0:00:00]} (39. Rd7 {is the only way for White.}) 39... Ra2 {[%emt 0:00:00]} 40. Ra7 {[%emt 0:00:00]} Kg6 {[%emt 0:00:00]} 41. Ra6+ {[%emt 0:00:00]} f6 {[%emt 0:00:00][%cal Bf7f6,Bf6f5][%mdl 32]} 42. Ra7 {[%emt 0:00:00]} a4 {[%emt 0:00:00][%cal Ba5a4,Ba4a3][%mdl 32] [#] And now ...a3 would win.} 43. Ra8 $2 {[%emt 0:00:00]} (43. Rb7) 43... a3 {[%emt 0:00:00]} 44. Ra4 {[%emt 0:00:00]} f5 {[%emt 0:00:00]} 45. Ra6+ {[%emt 0:00:00]} Kf7 {[%emt 0:00:00]} 46. Kg1 {[%emt 0:00:00]} Ke7 {[%emt 0:00:00] White must now prevent ...Kd7.} 47. Kg2 {[%emt 0:00:00]} Kd7 {[%emt 0:00:00]} 48. Ra5 {[%emt 0:00:00]} Kc6 {[%emt 0:00:00]} 49. Ra8 {[%emt 0:00:00]} Kb5 {[%emt 0:00:00] Strongly threatening ...Ra1.} 50. Rb8+ {[%emt 0:00:00]} Kc4 {[%emt 0:00:00]} 51. Rc8+ {[%emt 0:00:00]} Kd3 {[%emt 0:00:00]} 52. Ra8 {[%emt 0:00:00]} Kd2 {[%emt 0:00:00]} 53. Ra5 {[%emt 0:00:00]} Kc3 {[%emt 0:00:00] ( -> ...Kb4)} 54. Rc5+ {[%emt 0:00:00]} Kb4 {[%emt 0:00:00] Black mates.} 55. Rxf5 {[%emt 0:00:00]} Rc2 {[%emt 0:00:00]} 56. Rf8 {[%emt 0:00:00]} a2 {[%emt 0:00:00] Weighted Error Value: White=0.84/Black=0.33} 0-1

[Event "1st Bella Italia International 2022"]
[Site "Lignano"]
[Date "2022.08.18"]
[Round "2.2"]
[White "Visakh N R"]
[Black "Micottis, Dorian"]
[Result "1-0"]
[ECO "D90"]
[WhiteElo "2503"]
[BlackElo "2263"]
[Annotator "TA"]
[PlyCount "129"]
[EventDate "2022.08.18"]
[EventCountry "ITA"]
[SourceTitle "playchess.com"]
[Source "ChessBase"]
[SourceQuality "1"]
[TimeControl "5400+30"]

{[%evp 9,129,-15,19,20,28,20,20,18,14,29,18,22,20,19,62,60,56,37,39,25,25,16,22,0,38,31,23,17,18,18,10,0,1,-24,0,0,0,0,0,0,0,0,4,0,9,0,10,8,17,8,3,0,0,0,0,0,5,6,7,6,10,0,8,3,8,5,27,35,52,12,101,28,40,50,218,216,203,152,277,211,457,457,702,723,722,731,730,721,721,483,520,483,675,629,554,473,445,422,408,379,732,699,636,654,809,483,883,856,882,860,845,751,743,715,654,576,721,483,483,483,483,404]} 1. d4 {[%emt 0:00:01]} Nf6 {[%emt 0:02:26]} 2. c4 {[%emt 0:00:02]} g6 {[%emt 0:00:09]} 3. Nc3 {[%emt 0:00:04]} d5 {[%emt 0:00:18]} 4. Nf3 {[%emt 0:00:02]} Bg7 {[%emt 0:00:18]} 5. h4 {[%emt 0:00:01]} c6 {[%emt 0:04:22]} (5... dxc4 {seems wilder.} 6. e4 c5 7. Bxc4 cxd4 8. Qxd4 O-O) 6. cxd5 {[%emt 0:00:17] D90: Grünfeld: 4 Nf3 Bg7 sidelines.} cxd5 {[%emt 0:00:06]} 7. Bf4 {[%emt 0:00:10]} Nc6 {[%emt 0:04:28]} 8. e3 {[%emt 0:00:07] The position is equal.} O-O {[%emt 0:00:17]} 9. Qb3 {[%emt 0:00:04]} Na5 {[%emt 0:02:23] 9...Na5 has lost popularity.} 10. Qa3 {[%emt 0:00:21]} Nc6 {[%emt 0:07:08]} 11. Bb5 {[%emt 0:00:26] [#]} Qa5 $146 {[%emt 0:09:44]} ({Predecessor:} 11... Bd7 12. O-O a6 13. Be2 b5 14. Qb3 Na5 15. Qd1 Bg4 {½-½ (34) Swiercz,D (2655)-Nepomniachtchi,I (2771) Astana 2019}) 12. Qxa5 {[%emt 0:10:01]} Nxa5 {[%emt 0:00:07]} 13. Ne5 {[%emt 0:00:22]} (13. h5 $5) 13... Be6 {[%emt 0:08:33]} 14. Be2 {[%emt 0:07:44]} Rac8 {[%emt 0:09:22]} 15. Bf3 {[%emt 0:14:27] Against Ne4} Rfd8 {[%emt 0:02:41]} 16. O-O {[%emt 0:01:12]} Nc4 {[%emt 0:05:26]} (16... Nh5 $5 {[%cal Rh5f4]}) 17. Nxc4 {[%emt 0:03:13]} Rxc4 {[%emt 0:00:58]} 18. Be5 {[%emt 0:03:37]} Ng4 {[%emt 0:04:39]} 19. Bxg7 {[%emt 0:02:38]} Kxg7 {[%emt 0:00:05]} 20. Ne2 {[%emt 0:02:52]} Nf6 {[%emt 0:07:23]} 21. Nf4 {[%emt 0:08:18]} Bg4 {[%emt 0:01:53]} 22. b3 {[%emt 0:00:50]} Rcc8 {[%emt 0:03:01]} 23. Bxg4 {[%emt 0:00:54]} Nxg4 {[%emt 0:00:05]} 24. Rfc1 {[%emt 0:00:54] Against Rc2} e6 {[%emt 0:00:41]} 25. Nd3 {[%emt 0:00:58]} Kf8 {[%emt 0:03:54]} 26. Kf1 {[%emt 0:01:35]} h5 {[%emt 0:00:35]} 27. Ke2 {[%emt 0:01:03]} Ke7 {[%emt 0:00:32]} 28. a4 {[%emt 0:01:01]} a5 {[%emt 0:03:10]} 29. Rab1 {[%emt 0:01:10]} Nf6 {[%emt 0:01:23]} 30. b4 {[%emt 0:04:56] [#] Hoping for Rxc8.} Rxc1 {[%emt 0:05:55]} 31. Rxc1 {[%emt 0:00:10]} axb4 $11 {[%emt 0:00:32][%mdl 4096] Endgame KRN-KRN} 32. Rb1 {[%emt 0:00:16]} Nd7 {[%emt 0:01:33]} 33. Rxb4 {[%emt 0:01:22]} b6 {[%emt 0:00:18]} 34. Ne5 {[%emt 0:01:31] And now Nc6+ would win.} Ra8 {[%emt 0:02:40]} 35. Kd3 {[%emt 0:35:21]} Ra6 {[%emt 0:04:14]} 36. Kc2 {[%emt 0:00:00]} Nxe5 {[%emt 0:03:14]} 37. dxe5 {[%emt 0:00:00] KR-KR} f6 {[%emt 0:01:05]} 38. exf6+ {[%emt 0:00:00]} Kxf6 {[%emt 0:00:06]} 39. Kb3 {[%emt 0:00:00]} e5 {[%emt 0:00:37] [#]} (39... Ke5 $11) 40. Rb5 {[%emt 0:00:00]} (40. f3 $1 $16) 40... Ke6 $1 {[%emt 0:00:09]} 41. f3 {[%emt 0:00:00]} Kd6 $2 {[%emt 0:00:49] Loses the game.} (41... e4 $1 $14) 42. e4 $18 {[%emt 0:00:00]} dxe4 {[%emt 0:01:10]} 43. fxe4 {[%emt 0:00:00] aiming for Kb4.} Ke6 {[%emt 0:00:14]} (43... Kc7 $16 {was worth a try.} 44. Rxe5 Ra8) 44. Kb4 {[%emt 0:00:00] g3 is the strong threat.} Kf6 $2 {[%emt 0:00:42]} (44... g5 {keeps fighting.} 45. hxg5 h4) 45. Rd5 {[%emt 0:00:00]} Ke6 {[%emt 0:01:03] Prevents Rd7.} (45... Ke7 $142 46. Rxe5+ Kf7) 46. Rd8 {[%emt 0:00:00]} Ra7 {[%emt 0:00:39]} 47. Rb8 {[%emt 0:00:00]} Ra6 {[%emt 0:00:09]} 48. Rb7 {[%emt 0:00:00]} Kf6 {[%emt 0:00:23]} 49. Rc7 {[%emt 0:00:00]} Ke6 {[%emt 0:00:25]} 50. Rc6+ {[%emt 0:00:00]} Kf7 {[%emt 0:00:06]} 51. Rd6 {[%emt 0:00:00]} Kg7 {[%emt 0:01:31]} 52. Re6 {[%emt 0:00:00]} Kf7 {[%emt 0:00:05]} 53. Rxe5 {[%emt 0:00:00]} Kf6 {[%emt 0:00:03]} 54. Re8 {[%emt 0:00:00] Black must now prevent Rc8.} Ra7 $2 {[%emt 0:00:31]} (54... g5 55. e5+ Kg7) 55. Rb8 {[%emt 0:00:00] White is clearly winning.} Ra6 {[%emt 0:00:12]} 56. Rc8 {[%emt 0:00:00]} Kf7 {[%emt 0:01:12]} 57. Rc7+ {[%emt 0:00:00]} Kf6 {[%emt 0:00:11]} (57... Ke8 $142 58. Rc6 Ra5 59. Rxb6 Re5) 58. Rc6+ {[%emt 0:00:00]} Kg7 {[%emt 0:00:53]} 59. e5 {[%emt 0:00:00]} Kf7 {[%emt 0:00:13]} 60. Rf6+ {[%emt 0:00:00]} Kg7 {[%emt 0:00:06]} 61. Rd6 {[%emt 0:00:00]} Kf7 {[%emt 0:00:17]} 62. Rc6 {[%emt 0:00:00]} Kg7 {[%emt 0:00:46]} 63. e6 {[%emt 0:00:00]} Kf6 {[%emt 0:00:18]} 64. e7+ {[%emt 0:00:00]} Kxe7 {[%emt 0:00:04]} 65. Rxg6 {[%emt 0:00:00] Weighted Error Value: White=0.22 (precise) /Black=0.32} 1-0

[Event "1st Bella Italia International 2022"]
[Site "Lignano"]
[Date "2022.08.18"]
[Round "2.3"]
[White "Gelle, Istvan"]
[Black "Ghosh, Diptayan"]
[Result "0-1"]
[ECO "D00"]
[WhiteElo "2218"]
[BlackElo "2538"]
[Annotator "TA"]
[PlyCount "90"]
[EventDate "2022.08.18"]
[EventCountry "ITA"]
[SourceTitle "playchess.com"]
[Source "ChessBase"]
[SourceQuality "1"]
[TimeControl "5400+30"]

{[%evp 11,90,5,12,-9,8,6,47,50,58,47,57,37,41,16,13,0,0,0,0,0,0,0,0,0,0,-21,-37,-25,-33,-38,-17,-30,-27,-2,0,0,0,-41,0,0,0,0,0,-49,-47,-42,-27,-33,-27,-27,-27,-27,-32,-36,0,-95,-8,-16,0,0,0,0,0,0,0,0,0,0,0,0,83,0,0,0,0,-29995,-29996,-29997,-29998,-29998,-29999]} 1. d4 {[%emt 0:00:52]} Nf6 {[%emt 0:00:20]} 2. Bf4 {[%emt 0:00:12]} d5 {[%emt 0:01:55]} 3. e3 {[%emt 0:00:08]} c5 {[%emt 0:00:05]} 4. c3 {[%emt 0:02:55]} Nc6 {[%emt 0:00:06]} 5. Nd2 {[%emt 0:00:08]} Bf5 {[%emt 0:01:18]} 6. Ngf3 {[%emt 0:00:39]} e6 $1 {[%emt 0:00:10] The main line 6...e6 scores better than 6...Qb6.} 7. Qb3 {[%emt 0:00:40] D00: 1 d4 d5: Unusual lines.} Qc8 {[%emt 0:00:21]} 8. Nh4 {[%emt 0:00:48]} Bg4 {[%emt 0:00:34]} 9. h3 {[%emt 0:00:46] White is slightly better.} Bh5 {[%emt 0:00:06]} 10. g4 {[%emt 0:00:51]} Bg6 {[%emt 0:00:05]} 11. Nxg6 {[%emt 0:01:32]} hxg6 {[%emt 0:00:07]} 12. Bg2 {[%emt 0:04:23]} cxd4 {[%emt 0:03:40]} 13. exd4 {[%emt 0:00:48]} Qd7 {[%emt 0:00:14]} 14. O-O $1 {[%emt 0:07:06]} Bd6 {[%emt 0:02:28]} 15. Bxd6 {[%emt 0:01:06]} Qxd6 {[%emt 0:00:04]} 16. f4 {[%emt 0:02:22]} O-O {[%emt 0:08:39][%cal Ob7b5]} 17. a4 {[%emt 0:02:15] [#]} (17. Qxb7 Rab8 18. Nc4 Rxb7 $17) 17... Qc7 $146 {[%emt 0:05:47]} ({Predecessor:} 17... a6 18. a5 Qc7 19. Qa3 Rac8 20. Rf2 Ne8 21. f5 gxf5 22. gxf5 Nd6 23. fxe6 fxe6 {0-1 (56) Sadhwani,R (2616)-Lazavik,D (2472) Chess.com INT 2022}) 18. Qa3 {[%emt 0:08:21]} b6 {[%emt 0:02:42]} 19. Rae1 {[%emt 0:04:53]} Rfc8 {[%emt 0:06:24]} 20. Nb3 {[%emt 0:09:08]} a6 {[%emt 0:09:28]} 21. Rf2 {[%emt 0:21:31]} Rab8 {[%emt 0:10:03]} 22. Qa1 {[%emt 0:05:36]} Na5 {[%emt 0:09:36]} 23. Nxa5 {[%emt 0:02:56]} bxa5 {[%emt 0:00:05]} 24. Qd1 {[%emt 0:07:55]} Qc6 {[%emt 0:02:43]} 25. Bf1 {[%emt 0:03:51]} Ne4 {[%emt 0:01:14]} 26. Rg2 {[%emt 0:00:08]} f5 {[%emt 0:04:52]} 27. gxf5 {[%emt 0:00:45]} (27. h4 $11) 27... exf5 $15 {[%emt 0:01:08]} 28. Bd3 {[%emt 0:00:51]} Kf7 {[%emt 0:00:19]} 29. Re3 {[%emt 0:01:16]} Rh8 {[%emt 0:01:00]} 30. Bxe4 {[%emt 0:02:47]} dxe4 {[%emt 0:00:26]} 31. Reg3 {[%emt 0:01:13]} Rh6 {[%emt 0:00:52]} 32. Kh2 {[%emt 0:01:10]} Rb6 {[%emt 0:05:13]} 33. b4 {[%emt 0:03:05]} (33. d5 $11 Qc7 34. Qd4) 33... axb4 {[%emt 0:02:41]} ({Black should try} 33... Qd6 $1 $17 {[%cal Rd6f4]} 34. Qb3+ (34. bxa5 Qxf4 35. Qd2 Qxd2 $17) 34... Kf8) 34. Qb3+ $11 {[%emt 0:00:05]} Kf8 {[%emt 0:01:39]} 35. cxb4 {[%emt 0:00:21]} Qd6 {[%emt 0:00:15][%csl LRb4,LRd4,LRf4]} 36. Rc2 {[%emt 0:01:21] White threatens Rc8+ and mate.} Rb8 {[%emt 0:01:35] Against Rc8+} 37. b5 {[%emt 0:01:56]} axb5 {[%emt 0:00:50]} (37... Qxd4 $2 38. Rgc3 g5 39. Rc7 $16) 38. axb5 {[%emt 0:00:02]} Qxf4 {[%emt 0:03:30]} 39. b6 {[%emt 0:00:17] Strongly threatening Rc7.} g5 {[%emt 0:01:44]} 40. b7 {[%emt 0:00:47] And now Kg2 would win.} Ke7 {[%emt 0:01:53] [#]} (40... Re8 41. Rc8 e3 42. Rxe8+ Kxe8 43. b8=Q+ Qxb8 44. Qxb8+ Kf7 45. Rxe3) (40... g4 $1 $11 41. Kg1 Rxh3 42. Rc8+ Ke7 43. Rxh3 gxh3 44. Qb4+ (44. Qa3+ Kf7 $11) 44... Kf7 45. Qf8+ Kg6 46. Rxb8 (46. Qe8+ Kg5 $11) 46... Qg4+ 47. Kf2 Qf3+ 48. Ke1 e3 49. Qe8+ Kg5 50. Qe7+ Kg6 51. Qd6+ Kg5 52. Qe7+ Kg6 53. Qd6+ Kg5 54. Qe7+) 41. Qb4+ {[%emt 0:01:03]} (41. Kg2 $1 $16 {Rgc3 is the strong threat.} g4 42. Rf2) 41... Kf7 {[%emt 0:00:23][%cal Oh6h3] ( -> ...Rxh3+!). The board is on fire.} 42. Qc4+ {[%emt 0:01:15]} Kg6 {[%emt 0:01:30] aiming for ...g4.} 43. Qc7 $2 {[%emt 0:00:42][%mdl 8192] [#]} (43. Kg2 $11 e3 44. Qd5) 43... Rxh3+ $3 {[%emt 0:01:29][%mdl 512] Black mates.} 44. Kxh3 {[%emt 0:00:42]} (44. Kg1 Rxg3+) 44... Qf1+ {[%emt 0:00:05]} 45. Rgg2 {[%emt 0:00:52]} Rh8+ {[%emt 0:00:10] Weighted Error Value: White=0.29 (precise) /Black=0.10 (very precise)} 0-1

[Event "1st Bella Italia International 2022"]
[Site "Lignano"]
[Date "2022.08.18"]
[Round "2.4"]
[White "Karthik Venkataraman"]
[Black "Titze, Leo"]
[Result "1-0"]
[ECO "B23"]
[WhiteElo "2483"]
[BlackElo "2071"]
[Annotator "TA"]
[PlyCount "61"]
[EventDate "2022.08.18"]
[EventCountry "ITA"]
[SourceTitle "playchess.com"]
[Source "ChessBase"]
[SourceQuality "1"]
[TimeControl "5400+30"]

{[%evp 9,61,0,0,-22,7,8,23,-12,4,0,53,63,72,65,74,80,77,66,69,10,21,19,16,16,100,95,86,93,92,89,107,97,142,139,150,128,145,116,412,419,395,414,409,405,406,382,1256,400,1314,346,2546,2416,1655,1390]} 1. e4 {[%emt 0:05:27] Doe,John} c5 {[%emt 0:01:49]} 2. Nc3 {[%emt 0:00:11]} Nc6 {[%emt 0:01:08]} 3. Bb5 {[%emt 0:00:07]} e6 {[%emt 0:01:29]} 4. Bxc6 {[%emt 0:00:24]} bxc6 {[%emt 0:00:56]} 5. f4 {[%emt 0:01:29]} d5 {[%emt 0:04:40]} 6. Qe2 {[%emt 0:00:32] [#] B23: Closed Sicilian: Lines without g3.} a5 $146 {[%emt 0:03:58]} ({Predecessor:} 6... Be7 7. Nf3 Nf6 8. d3 Qb6 9. b3 Ba6 10. Na4 Qb7 11. c4 O-O 12. O-O Qc7 13. e5 Nd7 {0-1 (51) Abreu Flores,D (1897)-Castellet Menchon,C (1866) Barcelona 2019 EXT 2020 [Doe,John]}) 7. Nf3 {[%emt 0:01:02]} c4 {[%emt 0:08:47]} 8. O-O {[%emt 0:02:01] White has an edge.} Bc5+ {[%emt 0:04:40]} 9. Kh1 {[%emt 0:00:29]} Ne7 {[%emt 0:01:25]} ({Black should try} 9... Nf6 $11) 10. b3 $14 {[%emt 0:03:42]} Ba6 {[%emt 0:01:58]} 11. bxc4 {[%emt 0:00:08]} Bxc4 {[%emt 0:00:08]} 12. d3 {[%emt 0:00:03]} Ba6 {[%emt 0:00:34]} 13. Na4 {[%emt 0:00:59]} Ba7 {[%emt 0:00:38]} 14. c4 {[%emt 0:00:49]} (14. f5 $14) 14... O-O {[%emt 0:11:47]} 15. Ba3 {[%emt 0:00:44]} dxc4 {[%emt 0:03:24]} 16. dxc4 {[%emt 0:00:08]} Qc7 {[%emt 0:00:56]} (16... c5 $1 $11 {remains equal.}) 17. Nc5 $16 {[%emt 0:01:39]} Bxc5 {[%emt 0:01:22]} 18. Bxc5 {[%emt 0:00:06]} Rfd8 {[%emt 0:00:39]} 19. e5 {[%emt 0:02:42]} Ng6 {[%emt 0:04:37]} 20. Ng5 {[%emt 0:01:47]} a4 {[%emt 0:04:28]} 21. Rab1 {[%emt 0:03:06]} (21. Qh5 $6 h6 22. Nxe6 fxe6 $14) 21... Re8 {[%emt 0:08:59]} 22. Bd6 {[%emt 0:01:04] 0x0.00144ef3c5cadp-1022s more active pieces.} (22. Qh5 h6 23. Bd6 Qd7 $11) 22... Qa7 {[%emt 0:01:33]} 23. Qd3 $40 {[%emt 0:04:35][%mdl 128] aiming for f5. White wants a kill.} (23. Qh5 $6 h6 24. f5 exf5 25. Nxf7 Qxf7 $15) 23... c5 $2 {[%emt 0:02:36][%mdl 8192] Black cannot hold the game after this.} (23... h6 $16) 24. f5 $18 {[%emt 0:01:22]} (24. Qh3 h6 25. Ne4 Bxc4 $15) 24... exf5 {[%emt 0:00:46]} 25. Rxf5 {[%emt 0:00:07]} Qd7 {[%emt 0:03:02][%cal Oa6c4] [#] Hoping for ...Bxc4!} 26. Rbf1 {[%emt 0:12:18][%cal Rf5f7]} (26. Rxf7 Qg4 27. Qd5 (27. Bxc5 Qxg5 28. Qd5 Kh8 $17) 27... Kh8 $14) 26... Bb7 {[%emt 0:02:07]} 27. Rxf7 {[%emt 0:01:07]} Qc6 {[%emt 0:00:44]} (27... Qg4 28. Rxb7 Qxg5 29. Qd5+ (29. Bxc5 Rad8 $18) 29... Kh8) 28. Qg3 {[%emt 0:00:13]} ({Weaker is} 28. Qh3 h6 $18) (28. R1f2 $142 Qc8 29. e6 Rxe6 {[#]} 30. Qc3 $1 Bxg2+ 31. Kg1 Re1+ 32. Qxe1) 28... Rac8 {[%emt 0:05:27]} (28... Qxg2+ $142 29. Qxg2 Bxg2+ 30. Kxg2 Nxe5) 29. h4 $2 {[%emt 0:01:53]} (29. R1f2 {Strongly threatening Qh3.} Rf8 30. Bxf8 Rxf8 31. e6) 29... Kh8 $2 {[%emt 0:14:39]} (29... Qxg2+ 30. Qxg2 Bxg2+ 31. Kxg2 h6) 30. h5 {[%emt 0:00:41]} Nh4 {[%emt 0:00:32]} 31. Nf3 {[%emt 0:00:21] Weighted Error Value: White=0.54/Black=0.37} 1-0